[Event "ROU-ch Men 2018"]
[Site "Olanesti"]
[Date "2018.05.18"]
[Round "5"]
[White "Vasilescu, Lucian-Mihail"]
[Black "Chima, Radu-Niculin"]
[Result "1-0"]
[ECO "A20"]
[WhiteElo "2243"]
[BlackElo "2095"]
[Annotator "NA"]
[PlyCount "156"]
[EventDate "2018.??.??"]
[EventType "swiss"]
[EventCountry "ROU"]
[SourceTitle "playchess.com"]
[Source "ChessBase"]
[SourceQuality "1"]
[TimeControl "40/5400+30:1800+30"]

1. c4 {[%emt 0:00:00]} e5 {[%emt 0:00:06]} 2. g3 {[%emt 0:00:00]} Nf6 {[%emt 0:00:07]} 3. Bg2 {[%emt 0:00:00]} d5 {[%emt 0:00:09]} 4. cxd5 {[%emt 0:00:00]} Nxd5 {[%emt 0:00:04]} 5. Nf3 {[%emt 0:00:00]} Nc6 {[%emt 0:00:09]} 6. O-O {[%emt 0:00:12]} Nb6 {[%emt 0:01:03]} 7. d3 {[%emt 0:08:37]} Be7 {[%emt 0:00:58]} 8. a3 {[%emt 0:03:22]} O-O {[%emt 0:00:25]} 9. Nbd2 {[%emt 0:00:49]} Be6 {[%emt 0:00:55]} 10. b4 {[%emt 0:01:19]} a6 $14 {[%emt 0:03:58]} 11. Bb2 {[%emt 0:02:59]} f6 {[%emt 0:03:22]} 12. Rc1 {[%emt 0:15:09]} Qd7 {[%emt 0:01:26]} 13. Ne4 {[%emt 0:01:28]} Rfd8 {[%emt 0:09:43]} 14. Qc2 {[%emt 0:08:09]} Bh3 {[%emt 0:03:40]} 15. Bxh3 {[%emt 0:05:38]} Qxh3 {[%emt 0:00:58]} 16. Nc5 {[%emt 0:00:25]} Bxc5 {[%emt 0:01:13]} 17. bxc5 {[%emt 0:00:14]} Nd5 {[%emt 0:03:17]} 18. Qb3 {[%emt 0:09:18]} Qe6 {[%emt 0:07:28]} 19. Nd2 {[%emt 0:00:51]} Qf7 {[%emt 0:02:01]} 20. Ba1 {[%emt 0:07:21]} Rab8 {[%emt 0:05:36]} 21. Rb1 {[%emt 0:02:41]} Nd4 {[%emt 0:03:09]} 22. Bxd4 {[%emt 0:02:22]} exd4 {[%emt 0:00:08]} 23. Rfe1 {[%emt 0:00:42]} Nc3 {[%emt 0:00:48]} 24. Qxf7+ {[%emt 0:00:46]} Kxf7 {[%emt 0:02:24]} 25. Rb4 {[%emt 0:00:28]} b6 {[%emt 0:12:25]} 26. Nb3 {[%emt 0:12:48]} a5 {[%emt 0:06:54]} 27. Rc4 {[%emt 0:07:18]} b5 {[%emt 0:06:23]} 28. Rxd4 {[%emt 0:00:09]} a4 {[%emt 0:00:41]} 29. Rxd8 {[%emt 0:01:19]} Rxd8 {[%emt 0:00:15]} 30. Na5 {[%emt 0:01:14]} Rd5 {[%emt 0:03:46]} 31. c6 {[%emt 0:00:38]} Ke7 {[%emt 0:06:46]} 32. Kf1 {[%emt 0:00:34]} b4 {[%emt 0:02:51]} 33. axb4 {[%emt 0:00:08]} Rb5 {[%emt 0:00:34]} 34. Rc1 {[%emt 0:01:24]} Nd5 {[%emt 0:06:04]} 35. Rc5 {[%emt 0:03:53]} Rxb4 {[%emt 0:00:39]} 36. Nc4 {[%emt 0:02:14]} Nc3 {[%emt 0:02:37]} 37. Ra5 {[%emt 0:00:09]} Nb5 {[%emt 0:01:21]} 38. Ke1 {[%emt 0:02:06]} Nd4 {[%emt 0:01:13]} 39. Ra6 {[%emt 0:00:19]} Rb1+ {[%emt 0:01:45]} 40. Kd2 {[%emt 0:00:00]} Rb5 {[%emt 0:00:51]} 41. Ra7 {[%emt 0:02:38]} Kd8 {[%emt 0:02:17]} 42. Rxa4 {[%emt 0:02:15]} Nxc6 {[%emt 0:00:26]} 43. Ra8+ {[%emt 0:00:20]} Rb8 {[%emt 0:00:29]} 44. Rxb8+ {[%emt 0:05:02]} Nxb8 {[%emt 0:00:10]} 45. Ke3 {[%emt 0:00:13]} Kd7 {[%emt 0:00:17]} 46. h4 {[%emt 0:00:26]} c5 {[%emt 0:01:18]} 47. Ke4 {[%emt 0:00:29]} Ke6 {[%emt 0:02:20]} 48. g4 {[%emt 0:00:18]} g6 {[%emt 0:01:36]} 49. Ne3 {[%emt 0:00:11]} Nc6 {[%emt 0:01:20]} 50. f4 {[%emt 0:04:01]} Nd4 {[%emt 0:02:49]} 51. f5+ {[%emt 0:00:22]} Kf7 {[%emt 0:02:43]} 52. Kd5 {[%emt 0:00:23]} Nxe2 {[%emt 0:04:14]} 53. Kxc5 {[%emt 0:00:11]} h5 {[%emt 0:00:57]} 54. gxh5 {[%emt 0:00:47]} gxf5 {[%emt 0:01:07]} 55. Nxf5 {[%emt 0:00:24]} Nf4 {[%emt 0:00:41]} 56. d4 {[%emt 0:00:41]} Nxh5 {[%emt 0:00:38]} 57. d5 {[%emt 0:00:30]} Nf4 {[%emt 0:00:49]} 58. Kc6 {[%emt 0:00:48]} Nd3 {[%emt 0:01:26]} 59. h5 {[%emt 0:05:10]} Nb4+ {[%emt 0:04:36]} 60. Kc5 {[%emt 0:00:45]} Nd3+ {[%emt 0:00:16]} 61. Kd4 {[%emt 0:03:04]} Nf4 {[%emt 0:00:25]} 62. h6 {[%emt 0:00:11]} Kg6 {[%emt 0:00:47]} 63. Ke4 {[%emt 0:01:09]} Nh3 {[%emt 0:02:11]} 64. d6 {[%emt 0:01:13]} Ng5+ {[%emt 0:01:05]} 65. Kd5 {[%emt 0:02:19]} Nf7 {[%emt 0:02:17]} 66. d7 {[%emt 0:02:31]} Nd8 {[%emt 0:01:14]} 67. Kd6 {[%emt 0:00:50]} Nf7+ {[%emt 0:05:14]} 68. Ke7 {[%emt 0:00:39]} Ne5 {[%emt 0:00:50]} 69. d8=Q {[%emt 0:00:18]} Nc6+ {[%emt 0:00:07]} 70. Ke8 {[%emt 0:00:09]} Nxd8 {[%emt 0:00:13]} 71. Kxd8 {[%emt 0:00:06]} Kxf5 {[%emt 0:00:40]} 72. h7 {[%emt 0:00:06]} Kg4 {[%emt 0:00:17]} 73. h8=Q {[%emt 0:00:06]} f5 {[%emt 0:00:08]} 74. Qh1 {[%emt 0:00:13]} f4 {[%emt 0:00:45]} 75. Qf1 {[%emt 0:00:06]} Kg3 {[%emt 0:00:09]} 76. Ke7 {[%emt 0:00:05]} f3 {[%emt 0:00:05]} 77. Kf6 {[%emt 0:00:04]} f2 {[%emt 0:00:36]} 78. Ke5 {[%emt 0:00:07]} Kf3 {[%emt 0:00:21] Ke4+} 1-0

[Event "ROU-ch Men 2018"]
[Site "Olanesti"]
[Date "2018.05.18"]
[Round "5"]
[White "Ciobanu, Viorel-Adrian"]
[Black "Bobocea, Laurentiu-Vlad"]
[Result "1/2-1/2"]
[ECO "B92"]
[WhiteElo "2196"]
[BlackElo "1853"]
[Annotator "NA"]
[PlyCount "98"]
[EventDate "2018.??.??"]
[EventType "swiss"]
[EventCountry "ROU"]
[SourceTitle "playchess.com"]
[Source "ChessBase"]
[SourceQuality "1"]
[TimeControl "40/5400+30:1800+30"]

1. e4 {[%emt 0:00:00]} c5 {[%emt 0:08:46]} 2. Nf3 {[%emt 0:00:00]} d6 {[%emt 0:00:03]} 3. d4 {[%emt 0:00:00]} cxd4 {[%emt 0:00:05]} 4. Nxd4 {[%emt 0:00:00]} Nf6 {[%emt 0:00:02]} 5. Nc3 {[%emt 0:00:04]} a6 {[%emt 0:00:01]} 6. Be2 {[%emt 0:00:56]} e5 {[%emt 0:00:02]} 7. Nb3 {[%emt 0:00:10]} Be7 {[%emt 0:00:02]} 8. a4 {[%emt 0:02:01]} O-O {[%emt 0:00:06]} 9. O-O {[%emt 0:00:28]} Be6 {[%emt 0:00:05]} 10. f4 {[%emt 0:00:36]} exf4 {[%emt 0:01:25]} 11. Bxf4 {[%emt 0:00:28]} Nc6 {[%emt 0:00:15]} 12. Kh1 {[%emt 0:02:03]} d5 {[%emt 0:00:23]} 13. e5 {[%emt 0:01:45]} Ne4 {[%emt 0:00:14]} 14. Bf3 {[%emt 0:05:35]} f5 {[%emt 0:01:12]} 15. exf6 {[%emt 0:01:46]} Bxf6 {[%emt 0:00:22]} 16. Nxe4 {[%emt 0:01:10]} dxe4 {[%emt 0:00:04]} 17. Bxe4 {[%emt 0:00:11]} Qxd1 {[%emt 0:00:42]} 18. Raxd1 {[%emt 0:00:11]} Bc4 {[%emt 0:03:32]} 19. Bd3 {[%emt 0:10:59]} Bxd3 {[%emt 0:00:21]} 20. cxd3 {[%emt 0:00:41]} Bxb2 {[%emt 0:09:12]} 21. d4 {[%emt 0:00:11]} Ne7 {[%emt 0:06:00]} 22. Bd6 {[%emt 0:22:19]} Rxf1+ {[%emt 0:04:53]} 23. Rxf1 {[%emt 0:00:38]} Nd5 {[%emt 0:05:16]} 24. Rf5 {[%emt 0:03:25]} Ne3 {[%emt 0:03:31]} 25. Rf2 {[%emt 0:03:10]} Nc4 {[%emt 0:03:21]} 26. Bc5 {[%emt 0:01:26]} b6 {[%emt 0:08:17]} 27. Bxb6 {[%emt 0:06:06]} Nxb6 {[%emt 0:02:26]} 28. Rxb2 {[%emt 0:01:46]} Nxa4 {[%emt 0:00:06]} 29. Ra2 {[%emt 0:02:02]} Nc3 {[%emt 0:11:52]} 30. Ra1 {[%emt 0:00:09]} Kf7 {[%emt 0:03:06]} 31. h3 {[%emt 0:01:13]} Ke6 {[%emt 0:08:18]} 32. Ra5 {[%emt 0:00:12]} Nb5 {[%emt 0:02:13]} 33. Ra1 {[%emt 0:14:19]} a5 {[%emt 0:05:20]} 34. Nxa5 {[%emt 0:03:56]} Nxd4 {[%emt 0:00:35]} 35. Re1+ {[%emt 0:00:45]} Kf6 {[%emt 0:08:11]} 36. Nc4 {[%emt 0:00:32]} h6 {[%emt 0:01:35]} 37. Rf1+ {[%emt 0:02:30]} Ke6 {[%emt 0:00:37]} 38. Kh2 {[%emt 0:04:10]} Ra4 {[%emt 0:02:12]} 39. Nb2 {[%emt 0:02:18]} Ra3 {[%emt 0:00:30]} 40. Nc4 {[%emt 0:00:00]} Ra4 {[%emt 0:00:08]} 41. Re1+ {[%emt 0:01:11]} Kf6 {[%emt 0:01:27]} 42. Nd6 {[%emt 0:00:20]} Ra3 {[%emt 0:02:30]} 43. Rf1+ {[%emt 0:09:06]} Kg6 {[%emt 0:01:08]} 44. Nc4 {[%emt 0:00:09]} Ra7 {[%emt 0:03:06]} 45. Ne5+ {[%emt 0:00:17]} Kh7 {[%emt 0:00:24]} 46. Rf8 {[%emt 0:01:20]} Ne6 {[%emt 0:01:30]} 47. Rf2 {[%emt 0:01:40]} Ng5 {[%emt 0:00:43]} 48. Rf4 {[%emt 0:06:08]} Re7 {[%emt 0:00:33]} 49. Nf3 {[%emt 0:03:31]} Nxf3+ {[%emt 0:00:06]} 1/2-1/2

[Event "ROU-ch Men 2018"]
[Site "Olanesti"]
[Date "2018.05.18"]
[Round "5"]
[White "Dumitru, Matei-Ioan"]
[Black "Cenusa, Mihai"]
[Result "1-0"]
[ECO "B33"]
[WhiteElo "2164"]
[BlackElo "1819"]
[Annotator "NA"]
[PlyCount "85"]
[EventDate "2018.??.??"]
[EventType "swiss"]
[EventCountry "ROU"]
[SourceTitle "playchess.com"]
[Source "ChessBase"]
[SourceQuality "1"]
[TimeControl "40/5400+30:1800+30"]

1. e4 {[%emt 0:00:00]} c5 {[%emt 0:00:07]} 2. Nf3 {[%emt 0:00:00]} Nc6 {[%emt 0:00:22]} 3. d4 {[%emt 0:00:00]} cxd4 {[%emt 0:00:10]} 4. Nxd4 {[%emt 0:00:00]} e5 {[%emt 0:00:20]} 5. Nb5 {[%emt 0:00:18]} d6 {[%emt 0:00:39]} 6. N1c3 {[%emt 0:01:49]} a6 {[%emt 0:00:48]} 7. Na3 {[%emt 0:00:06]} Nf6 {[%emt 0:00:49]} 8. Bg5 {[%emt 0:00:50]} Be6 {[%emt 0:01:33]} 9. Nc4 {[%emt 0:04:07]} h6 {[%emt 0:00:36]} 10. Bxf6 {[%emt 0:01:21]} gxf6 {[%emt 0:00:18]} 11. Nd5 {[%emt 0:11:48]} b5 {[%emt 0:02:17]} 12. Nce3 {[%emt 0:00:44]} Be7 {[%emt 0:02:53]} 13. Qd2 {[%emt 0:10:25]} Rc8 {[%emt 0:02:44]} 14. c3 {[%emt 0:11:02]} Na5 {[%emt 0:11:16]} 15. b4 {[%emt 0:01:46]} Bxd5 {[%emt 0:00:12]} 16. Qxd5 {[%emt 0:01:50]} Rxc3 {[%emt 0:01:31]} 17. bxa5 {[%emt 0:05:00]} Qxa5 {[%emt 0:00:12]} 18. Qd2 {[%emt 0:00:37]} Qb4 {[%emt 0:03:41]} 19. Be2 {[%emt 0:05:53]} Qc5 {[%emt 0:01:02]} 20. O-O {[%emt 0:00:28]} Bd8 {[%emt 0:09:13]} 21. Rfd1 {[%emt 0:00:55]} Kd7 {[%emt 0:01:43]} 22. Nf5 {[%emt 0:03:08]} Bc7 {[%emt 0:01:57]} 23. Rac1 {[%emt 0:00:27]} Rxc1 {[%emt 0:02:19]} 24. Rxc1 {[%emt 0:00:05]} Qa3 {[%emt 0:00:29]} 25. Bg4 {[%emt 0:01:22]} Kd8 {[%emt 0:01:16]} 26. Qc2 {[%emt 0:01:22]} Qc5 {[%emt 0:05:26]} 27. Qxc5 {[%emt 0:00:08]} dxc5 {[%emt 0:00:13]} 28. Rxc5 {[%emt 0:00:07]} h5 {[%emt 0:02:03]} 29. Bh3 {[%emt 0:00:06]} Kc8 {[%emt 0:01:13]} 30. Ne7+ {[%emt 0:03:10]} Kb8 {[%emt 0:03:54]} 31. Nd5 {[%emt 0:00:12]} Bd6 {[%emt 0:04:18]} 32. Rc6 {[%emt 0:00:11]} Rd8 {[%emt 0:00:18]} 33. Rxa6 {[%emt 0:00:11]} Bc5 {[%emt 0:00:36]} 34. Rxf6 {[%emt 0:00:21]} Kb7 {[%emt 0:05:03]} 35. Rxf7+ {[%emt 0:00:17]} Ka6 {[%emt 0:00:07]} 36. g3 {[%emt 0:01:13]} Rf8 {[%emt 0:01:01]} 37. Rxf8 {[%emt 0:00:27]} Bxf8 {[%emt 0:00:07]} 38. f4 {[%emt 0:00:24]} exf4 {[%emt 0:00:58]} 39. gxf4 {[%emt 0:00:11]} Bc5+ {[%emt 0:01:00]} 40. Kg2 {[%emt 0:00:00]} h4 {[%emt 0:00:18]} 41. Bd7 {[%emt 0:00:43]} b4 {[%emt 0:07:05]} 42. e5 {[%emt 0:00:08]} Kb7 {[%emt 0:00:25]} 43. f5 {[%emt 0:00:05]} 1-0

[Event "ROU-ch Men 2018"]
[Site "Olanesti"]
[Date "2018.05.18"]
[Round "5"]
[White "Horvat, Dan-Sebastian"]
[Black "Stoleriu, George"]
[Result "1/2-1/2"]
[ECO "A40"]
[WhiteElo "2152"]
[BlackElo "2333"]
[Annotator "NA"]
[PlyCount "84"]
[EventDate "2018.??.??"]
[EventType "swiss"]
[EventCountry "ROU"]
[SourceTitle "playchess.com"]
[Source "ChessBase"]
[SourceQuality "1"]
[TimeControl "40/5400+30:1800+30"]

1. d4 {[%emt 0:04:25]} e6 {[%emt 0:00:04]} 2. Nf3 {[%emt 0:00:39]} Nf6 {[%emt 0:00:21]} 3. Bf4 {[%emt 0:00:44]} b6 {[%emt 0:00:05]} 4. e3 {[%emt 0:00:40]} Bb7 {[%emt 0:00:05]} 5. Bd3 {[%emt 0:00:27]} d6 {[%emt 0:00:15]} 6. Nbd2 {[%emt 0:06:13]} Nbd7 {[%emt 0:00:23]} 7. O-O {[%emt 0:01:26]} g6 {[%emt 0:00:50]} 8. Qe2 {[%emt 0:08:03]} Bg7 {[%emt 0:00:43]} 9. h3 {[%emt 0:00:29]} Qe7 {[%emt 0:02:21]} 10. Bh2 {[%emt 0:04:44]} e5 {[%emt 0:02:07]} 11. dxe5 {[%emt 0:16:58]} dxe5 {[%emt 0:00:15]} 12. e4 {[%emt 0:00:22]} O-O {[%emt 0:00:37]} 13. Ba6 $11 {[%emt 0:01:28]} Bxa6 {[%emt 0:06:10]} 14. Qxa6 {[%emt 0:00:58]} Ne8 {[%emt 0:11:34]} 15. Nc4 {[%emt 0:05:18]} Qe6 {[%emt 0:07:51]} 16. Qb7 {[%emt 0:12:24]} Rb8 {[%emt 0:04:56]} 17. Qd5 {[%emt 0:00:28]} Qxd5 {[%emt 0:02:32]} 18. exd5 {[%emt 0:00:09]} f6 {[%emt 0:00:48]} 19. Nfd2 {[%emt 0:10:08]} b5 {[%emt 0:03:49]} 20. Na5 {[%emt 0:03:45]} Nd6 {[%emt 0:01:37]} 21. Nc6 {[%emt 0:01:09]} Ra8 {[%emt 0:00:12]} 22. f4 {[%emt 0:03:15]} Bh6 {[%emt 0:20:50]} 23. Nf3 {[%emt 0:07:11]} e4 {[%emt 0:05:36]} 24. Nfd4 {[%emt 0:00:12]} Nb6 {[%emt 0:00:17]} 25. f5 {[%emt 0:04:42]} Be3+ {[%emt 0:10:47]} 26. Kh1 {[%emt 0:00:05]} Bxd4 {[%emt 0:00:35]} 27. Bxd6 {[%emt 0:02:12]} cxd6 {[%emt 0:00:18]} 28. Nxd4 {[%emt 0:00:03]} Nxd5 {[%emt 0:00:15]} 29. Rae1 {[%emt 0:00:18]} a6 {[%emt 0:12:30]} 30. Rxe4 {[%emt 0:00:07]} Rfe8 {[%emt 0:00:07]} 31. Rfe1 {[%emt 0:01:21]} Re5 {[%emt 0:00:29]} 32. fxg6 {[%emt 0:01:47]} hxg6 {[%emt 0:00:04]} 33. Nf3 {[%emt 0:00:12]} Rxe4 {[%emt 0:00:09]} 34. Rxe4 {[%emt 0:00:04]} Kf7 {[%emt 0:00:48]} 35. Kg1 {[%emt 0:01:59]} Rc8 {[%emt 0:00:29]} 36. c3 {[%emt 0:00:13]} b4 {[%emt 0:02:07]} 37. cxb4 {[%emt 0:00:33]} Rc2 {[%emt 0:01:43]} 38. Rd4 {[%emt 0:00:42]} Ke6 {[%emt 0:00:12]} 39. Re4+ {[%emt 0:01:39]} Kd7 {[%emt 0:00:57]} 40. Rd4 {[%emt 0:00:00]} Ke6 {[%emt 0:02:44]} 41. Re4+ {[%emt 0:08:10]} Kd7 {[%emt 0:00:55]} 42. Rd4 {[%emt 0:00:51]} Ke6 {[%emt 0:00:50]} 1/2-1/2

[Event "ROU-ch Men 2018"]
[Site "Olanesti"]
[Date "2018.05.18"]
[Round "5"]
[White "Paraschiv, Paul-Alexandru"]
[Black "Banzea, Alexandru-Bogdan"]
[Result "0-1"]
[ECO "D04"]
[WhiteElo "2131"]
[BlackElo "2325"]
[Annotator "NA"]
[PlyCount "60"]
[EventDate "2018.??.??"]
[EventType "swiss"]
[EventCountry "ROU"]
[SourceTitle "playchess.com"]
[Source "ChessBase"]
[SourceQuality "1"]
[TimeControl "40/5400+30:1800+30"]

1. d4 {[%emt 0:00:00]} d5 {[%emt 0:00:07]} 2. Nf3 {[%emt 0:00:05]} Nf6 {[%emt 0:00:07]} 3. e3 {[%emt 0:00:22]} c5 {[%emt 0:00:17]} 4. b3 {[%emt 0:00:38]} cxd4 {[%emt 0:00:13]} 5. exd4 {[%emt 0:00:06]} Nc6 {[%emt 0:00:03]} 6. c3 {[%emt 0:00:24]} Bg4 {[%emt 0:00:26]} 7. Bd3 {[%emt 0:01:55]} e6 {[%emt 0:00:45]} 8. O-O {[%emt 0:01:25]} Bd6 {[%emt 0:00:20]} 9. Nbd2 {[%emt 0:00:39]} Qc7 {[%emt 0:00:30]} 10. h3 {[%emt 0:00:33]} Bh5 {[%emt 0:00:13]} 11. Bb2 {[%emt 0:01:58]} g5 {[%emt 0:04:50]} 12. g4 {[%emt 0:16:38]} Bg6 {[%emt 0:00:32]} 13. Bxg6 {[%emt 0:00:56]} hxg6 {[%emt 0:00:07]} 14. Kg2 {[%emt 0:00:36]} O-O-O {[%emt 0:06:33]} 15. c4 {[%emt 0:03:34]} Bf4 {[%emt 0:06:26]} 16. c5 {[%emt 0:05:08]} Ne4 $19 {[%emt 0:01:51]} 17. Qe2 {[%emt 0:07:03]} Bxd2 {[%emt 0:11:55]} 18. Nxd2 {[%emt 0:01:50]} Rxh3 {[%emt 0:00:21]} 19. Rh1 {[%emt 0:05:53]} Ng3 {[%emt 0:01:01]} 20. Qe3 {[%emt 0:02:23]} Rxh1 {[%emt 0:00:13]} 21. fxg3 {[%emt 0:00:08]} Rxa1 {[%emt 0:00:32]} 22. Bxa1 {[%emt 0:00:06]} Qe7 {[%emt 0:04:00]} 23. a3 {[%emt 0:00:36]} e5 {[%emt 0:02:50]} 24. b4 {[%emt 0:02:35]} exd4 {[%emt 0:01:13]} 25. Qxe7 {[%emt 0:00:06]} Nxe7 {[%emt 0:00:04]} 26. Bxd4 {[%emt 0:00:10]} Nc6 {[%emt 0:00:15]} 27. Bf6 {[%emt 0:00:19]} Re8 {[%emt 0:00:01]} 28. Kf2 {[%emt 0:00:26]} Ne5 {[%emt 0:00:54]} 29. Bxe5 {[%emt 0:00:34]} Rxe5 {[%emt 0:00:01]} 30. Nf3 {[%emt 0:00:10]} Re7 {[%emt 0:01:26]} 0-1

[Event "ROU-ch Men 2018"]
[Site "Olanesti"]
[Date "2018.05.18"]
[Round "5"]
[White "Iustin, Silviu"]
[Black "Ciorgovean, Iustin"]
[Result "1/2-1/2"]
[ECO "B23"]
[WhiteElo "1962"]
[BlackElo "2169"]
[Annotator "NA"]
[PlyCount "35"]
[EventDate "2018.??.??"]
[EventType "swiss"]
[EventCountry "ROU"]
[SourceTitle "playchess.com"]
[Source "ChessBase"]
[SourceQuality "1"]
[TimeControl "40/5400+30:1800+30"]

1. e4 {[%emt 0:00:00]} c5 {[%emt 0:00:10]} 2. Nc3 {[%emt 0:00:00]} d6 {[%emt 0:00:04]} 3. d4 {[%emt 0:00:27]} cxd4 {[%emt 0:00:20]} 4. Qxd4 {[%emt 0:00:00]} Nc6 {[%emt 0:01:27]} 5. Qd2 {[%emt 0:00:09]} Nf6 {[%emt 0:03:11]} 6. b3 {[%emt 0:00:49]} e6 {[%emt 0:03:05]} 7. Bb2 {[%emt 0:00:26]} Be7 {[%emt 0:01:30]} 8. O-O-O {[%emt 0:03:13]} a6 {[%emt 0:00:35]} 9. f3 {[%emt 0:03:38]} h5 {[%emt 0:01:16]} 10. Nh3 {[%emt 0:01:06]} Bd7 {[%emt 0:04:07]} 11. Bd3 {[%emt 0:01:39]} Rc8 {[%emt 0:08:36]} 12. Kb1 {[%emt 0:01:54]} e5 {[%emt 0:10:19]} 13. Nd5 {[%emt 0:21:15]} Bxh3 {[%emt 0:16:07]} 14. Nxe7 {[%emt 0:02:44]} Nxe7 {[%emt 0:00:46]} 15. gxh3 {[%emt 0:00:14]} Ng6 {[%emt 0:00:54]} 16. Rhg1 {[%emt 0:01:53]} h4 {[%emt 0:05:31]} 17. Bc4 {[%emt 0:02:50]} Rc6 18. f4 1/2-1/2

[Event "ROU-ch Men 2018"]
[Site "Olanesti"]
[Date "2018.05.18"]
[Round "5"]
[White "Craciun, Ovidiu"]
[Black "Albu, George"]
[Result "1/2-1/2"]
[ECO "B42"]
[WhiteElo "1931"]
[BlackElo "2038"]
[Annotator "NA"]
[PlyCount "87"]
[EventDate "2018.??.??"]
[EventType "swiss"]
[EventCountry "ROU"]
[SourceTitle "playchess.com"]
[Source "ChessBase"]
[SourceQuality "1"]
[TimeControl "40/5400+30:1800+30"]

1. e4 {[%emt 0:00:00]} c5 {[%emt 0:00:06]} 2. Nf3 {[%emt 0:00:00]} e6 {[%emt 0:00:08]} 3. d4 {[%emt 0:00:00]} cxd4 {[%emt 0:00:07]} 4. Nxd4 {[%emt 0:00:00]} a6 {[%emt 0:00:04]} 5. Bd3 {[%emt 0:00:35]} b5 {[%emt 0:00:10]} 6. O-O {[%emt 0:01:11]} Bb7 {[%emt 0:00:27]} 7. a4 {[%emt 0:00:39]} b4 {[%emt 0:00:19]} 8. c4 {[%emt 0:00:43]} Qc7 {[%emt 0:09:09]} 9. Qe2 {[%emt 0:07:00]} Nc6 {[%emt 0:02:37]} 10. Nxc6 {[%emt 0:02:05]} Bxc6 {[%emt 0:00:31]} 11. b3 {[%emt 0:02:12]} Bd6 {[%emt 0:12:57]} 12. f4 {[%emt 0:03:02]} Bc5+ {[%emt 0:02:50]} 13. Kh1 {[%emt 0:00:10]} h5 {[%emt 0:02:38]} 14. Nd2 {[%emt 0:07:50]} f6 {[%emt 0:09:18]} 15. Bb2 {[%emt 0:02:05]} O-O-O {[%emt 0:07:43]} 16. Nf3 {[%emt 0:07:20]} Qa7 {[%emt 0:03:06]} 17. Rad1 {[%emt 0:06:14]} h4 {[%emt 0:00:40]} 18. h3 {[%emt 0:05:04]} Ne7 {[%emt 0:02:49]} 19. Bc2 {[%emt 0:03:39]} Ng6 {[%emt 0:13:19]} 20. Qd2 {[%emt 0:05:11]} Ne7 {[%emt 0:23:53]} 21. Bd4 {[%emt 0:00:57]} Bxd4 {[%emt 0:06:08]} 22. Nxd4 {[%emt 0:00:54]} Qc5 {[%emt 0:01:15]} 23. Bb1 {[%emt 0:01:35]} Bb7 {[%emt 0:01:02]} 24. Rc1 {[%emt 0:00:28]} Nc6 {[%emt 0:00:12]} 25. Nb5 {[%emt 0:00:20]} axb5 {[%emt 0:00:47]} 26. cxb5 {[%emt 0:00:01]} Qe7 {[%emt 0:00:32]} 27. bxc6 {[%emt 0:04:00]} dxc6 {[%emt 0:00:01]} 28. Qe3 {[%emt 0:00:59]} Kb8 {[%emt 0:01:05]} 29. Rc5 {[%emt 0:00:56]} Qd6 {[%emt 0:00:31]} 30. Rfc1 {[%emt 0:01:16]} Qd2 {[%emt 0:00:35]} 31. Qf3 {[%emt 0:16:13]} Rhf8 {[%emt 0:00:20]} 32. Qg4 {[%emt 0:01:19]} g5 {[%emt 0:00:35]} 33. fxg5 {[%emt 0:01:00]} fxg5 {[%emt 0:00:02]} 34. Qxg5 {[%emt 0:00:29]} Qxg5 {[%emt 0:00:59]} 35. Rxg5 {[%emt 0:00:06]} Rd2 {[%emt 0:00:26]} 36. Kh2 {[%emt 0:15:46]} Rff2 {[%emt 0:00:10]} 37. Rg8+ {[%emt 0:03:44]} Ka7 {[%emt 0:00:27]} 38. Rg7 {[%emt 0:00:23]} Kb6 {[%emt 0:00:57]} 39. Rc4 {[%emt 0:02:51]} Ba6 {[%emt 0:00:29]} 40. a5+ {[%emt 0:00:00]} Kxa5 {[%emt 0:00:32]} 41. Rxc6 {[%emt 0:00:35]} e5 {[%emt 0:11:21]} 42. Rc5+ {[%emt 0:02:10]} Bb5 {[%emt 0:01:23]} 43. Rxe5 {[%emt 0:00:23]} Rf1 {[%emt 0:00:23]} 44. Rb7 {[%emt 0:15:12]} 1/2-1/2

[Event "ROU-ch Men 2018"]
[Site "Olanesti"]
[Date "2018.05.18"]
[Round "5"]
[White "Muller, Wilhelm"]
[Black "Rusan, Paul-Cristian"]
[Result "0-1"]
[ECO "A00"]
[WhiteElo "1896"]
[BlackElo "2213"]
[Annotator "NA"]
[PlyCount "56"]
[EventDate "2018.??.??"]
[EventType "swiss"]
[EventCountry "ROU"]
[SourceTitle "playchess.com"]
[Source "ChessBase"]
[SourceQuality "1"]
[TimeControl "40/5400+30:1800+30"]

1. d3 {[%emt 0:00:00]} f5 {[%emt 0:02:37]} 2. e4 {[%emt 0:01:03]} d6 {[%emt 0:00:28]} 3. g3 {[%emt 0:00:21]} e5 {[%emt 0:01:20]} 4. Bg2 {[%emt 0:00:29]} fxe4 {[%emt 0:00:49]} 5. dxe4 {[%emt 0:00:04]} Nf6 {[%emt 0:00:21]} 6. Ne2 {[%emt 0:03:59]} Be7 {[%emt 0:01:18]} 7. h3 {[%emt 0:03:11]} h5 {[%emt 0:02:00]} 8. Bg5 {[%emt 0:01:08]} Be6 {[%emt 0:02:24]} 9. Nd2 {[%emt 0:02:49]} Qd7 {[%emt 0:02:14]} 10. c3 {[%emt 0:04:06]} a5 {[%emt 0:01:01]} 11. f4 {[%emt 0:02:38]} Nc6 {[%emt 0:04:33]} 12. f5 {[%emt 0:04:08]} Bf7 {[%emt 0:00:29]} 13. a4 {[%emt 0:06:20]} O-O-O {[%emt 0:10:17]} 14. Nf1 {[%emt 0:05:01]} g6 {[%emt 0:16:16]} 15. Ne3 {[%emt 0:00:56]} Ng4 {[%emt 0:02:33]} 16. Nxg4 {[%emt 0:08:24]} Bxg5 {[%emt 0:00:42]} 17. Nf2 {[%emt 0:01:16]} gxf5 {[%emt 0:02:08]} 18. exf5 {[%emt 0:02:57]} d5 {[%emt 0:03:10]} 19. h4 {[%emt 0:04:49]} Be3 {[%emt 0:01:37]} 20. Bh3 {[%emt 0:01:53]} Kb8 {[%emt 0:08:48]} 21. Qc2 {[%emt 0:05:57]} d4 {[%emt 0:03:39]} 22. Nc1 {[%emt 0:13:04]} e4 {[%emt 0:11:14]} 23. f6 {[%emt 0:06:11]} Be6 {[%emt 0:04:18]} 24. Bxe6 {[%emt 0:07:10]} Qxe6 {[%emt 0:01:07]} 25. Nb3 {[%emt 0:02:10]} d3 {[%emt 0:00:42]} 26. Qd1 {[%emt 0:00:39]} Bxf2+ {[%emt 0:03:34]} 27. Kxf2 {[%emt 0:00:01]} e3+ {[%emt 0:00:22]} 28. Kg2 {[%emt 0:00:23]} e2 {[%emt 0:00:20]} 0-1